bitfinex-derivatives/quotes_BTCF0:USTF0_20250918
["timestamp","ask_amount","ask_price","bid_price","bid_amount"]
[1758237911232,1.65099618,116780.0,116770.0,0.46743934]
[1758237911536,1.65099618,116780.0,116770.0,0.31347047]
[1758237913727,1.427,116780.0,116770.0,0.31347047]
[1758237913928,1.65099618,116780.0,116770.0,0.31347047]
[1758237914734,1.41484,116780.0,116770.0,0.88117665]
[1758237915134,1.41484,116780.0,116770.0,0.65718047]
[1758237915334,1.41484,116780.0,116770.0,0.88117665]
[1758237916040,1.41484,116780.0,116770.0,0.65718047]
[1758237916240,1.41484,116780.0,116770.0,0.88117665]
[1758237917436,1.427,116780.0,116770.0,0.88117665]
[1758237919837,1.40099618,116780.0,116770.0,0.88117665]
[1758237920036,1.40099618,116780.0,116770.0,0.86746665]
[1758237920933,1.40099618,116780.0,116770.0,0.34347047]
[1758237924942,1.177,116780.0,116770.0,0.34347047]
[1758237925342,1.40099618,116780.0,116770.0,0.34347047]
[1758237926038,1.40091618,116780.0,116770.0,0.56746665]
[1758237927544,1.40091618,116780.0,116770.0,0.33100665]
[1758237927744,1.17692,116780.0,116770.0,0.89100665]
[1758237933849,1.16472,116780.0,116770.0,0.89100665]
[1758237935549,0.38436,116780.0,116770.0,0.66701047]
[1758237935750,1.16468,116780.0,116770.0,0.89100665]
[1758237936847,0.38436,116780.0,116770.0,0.89100665]
[1758237937052,1.16468,116780.0,116770.0,0.89100665]
[1758237937947,0.38436,116780.0,116770.0,0.89100665]
[1758237938153,1.16468,116780.0,116770.0,0.89100665]
[1758237939754,1.50069167,116780.0,116770.0,1.00302214]
[1758237942750,1.50065167,116780.0,116770.0,1.00302214]
[1758237943154,0.72037167,116780.0,116770.0,1.00302214]
[1758237943356,1.50065167,116780.0,116770.0,1.00302214]
[1758237945552,0.38436,116780.0,116770.0,1.00302214]
[1758237945757,1.50061167,116780.0,116770.0,1.00302214]
[1758237948857,0.72037167,116780.0,116770.0,1.00302214]
[1758237949062,1.16456,116780.0,116770.0,1.33903381]
[1758237949249,0.38436,116780.0,116770.0,1.33903381]
[1758237949558,1.16456,116780.0,116770.0,1.33903381]
[1758237949756,1.16456,116780.0,116770.0,0.66701047]
[1758237950053,1.16456,116780.0,116770.0,1.00302214]
[1758237951155,0.38436,116780.0,116770.0,1.00302214]
[1758237951461,1.16456,116780.0,116770.0,1.00302214]
[1758237951660,0.38436,116780.0,116770.0,1.00302214]
[1758237951854,1.16452,116780.0,116770.0,1.00302214]
[1758237954667,1.16452,116780.0,116770.0,1.33903381]
[1758237956364,1.16452,116780.0,116770.0,0.82097934]
[1758237956664,1.16452,116780.0,116770.0,1.49300268]
[1758237958465,1.16444,116780.0,116770.0,1.49300268]
[1758237958868,1.16444,116780.0,116770.0,1.33903381]
[1758237960968,0.38436,116780.0,116770.0,1.33903381]
[1758237961268,1.16444,116780.0,116770.0,1.33903381]
[1758237963770,0.38436,116780.0,116770.0,1.33903381]
[1758237964363,1.1644,116780.0,116770.0,1.33903381]
[1758237967669,1.1644,116780.0,116770.0,1.49300268]
[1758237968570,1.5252,116780.0,116770.0,1.49300268]
[1758237970772,1.5252,116780.0,116770.0,1.33903381]
[1758237979780,1.5252,116780.0,116770.0,1.49300268]
[1758237983888,1.5252,116780.0,116770.0,1.33903381]
[1758237985393,0.8036,116780.0,116770.0,1.33903381]
[1758237985592,1.5252,116780.0,116770.0,1.33903381]
[1758237987398,0.74516,116780.0,116770.0,1.33903381]
[1758237987588,1.52492,116780.0,116770.0,1.33903381]
[1758237991098,0.74516,116780.0,116770.0,1.33903381]
[1758237991288,1.52488,116780.0,116770.0,1.33903381]
[1758237991490,0.80328,116780.0,116770.0,1.33903381]
[1758237991789,1.52488,116780.0,116770.0,1.33903381]
[1758237993397,1.52488,116780.0,116770.0,1.49300268]
[1758237999002,1.52488,116780.0,116770.0,1.33903381]
[1758237999805,1.52488,116780.0,116770.0,1.11494605]
[1758238001311,1.52476,116780.0,116770.0,1.11494605]
[1758238001499,1.52476,116780.0,116770.0,1.12494605]
[1758238007704,0.80316,116780.0,116770.0,1.12494605]
[1758238008010,1.52476,116780.0,116770.0,1.12494605]
[1758238015111,0.74516,116780.0,116770.0,1.12494605]
[1758238015313,1.52456,116780.0,116770.0,1.12494605]
[1758238015511,0.74516,116780.0,116770.0,1.12494605]
[1758238015716,0.7226,116780.0,116770.0,1.83630739]
[1758238015917,0.7226,116780.0,116770.0,2.08630739]
[1758238016316,0.7226,116780.0,116770.0,1.8623396]
[1758238016712,0.7226,116780.0,116770.0,2.16630739]
[1758238016919,0.7226,116780.0,116770.0,2.60656199]
[1758238017212,0.7226,116780.0,116770.0,3.38592199]
[1758238017405,0.3618,116780.0,116770.0,3.38592199]
[1758238017606,0.3618,116780.0,116770.0,3.1619542]
[1758238018120,0.3618,116780.0,116770.0,2.9616996]
[1758238018327,0.3618,116780.0,116770.0,3.11556385]
[1758238018719,0.3618,116780.0,116770.0,3.33953164]
[1758238021613,0.3618,116780.0,116770.0,3.38584199]
[1758238021818,0.3618,116780.0,116770.0,3.1618742]
[1758238024721,0.3618,116780.0,116770.0,3.38584199]
[1758238026421,0.3618,116780.0,116770.0,3.18558739]
[1758238027315,0.02287,116810.0,116800.0,0.02149]
[1758238027519,0.03559,116810.0,116800.0,2.43808767]
[1758238027712,0.03559,116810.0,116800.0,2.21411988]
[1758238028524,0.02587,116810.0,116800.0,2.21511988]
[1758238029117,0.02587,116810.0,116800.0,2.43908767]
[1758238029613,0.003,116810.0,116800.0,2.44691767]
[1758238029920,0.003,116810.0,116800.0,2.86532956]
[1758238030424,0.004,116810.0,116800.0,2.86632956]
[1758238030626,0.001,116810.0,116800.0,2.86532956]
[1758238031524,0.001,116810.0,116800.0,2.86632956]
[1758238032025,0.001,116810.0,116800.0,2.86620956]
[1758238034121,0.03503,116840.0,116830.0,0.1070425]
[1758238034323,0.39643,116850.0,116840.0,0.03455]
[1758238034527,0.39643,116850.0,116840.0,0.76942558]
[1758238036232,0.39743,116850.0,116840.0,0.76942558]
[1758238036533,0.39743,116850.0,116840.0,0.84705222]
[1758238037028,0.39943,116850.0,116840.0,0.84705222]
[1758238044230,0.00304,116850.0,116840.0,1.84077511]
[1758238044420,0.00304,116850.0,116840.0,1.75523001]
[1758238044626,0.00304,116850.0,116840.0,2.30986222]
[1758238044826,0.00304,116850.0,116840.0,2.61937511]
[1758238045835,0.00304,116850.0,116840.0,1.84077511]
[1758238046035,0.00304,116850.0,116840.0,1.94747174]
[1758238046240,0.00304,116850.0,116840.0,2.61933511]
[1758238047831,0.39993,116850.0,116840.0,0.39911664]
[1758238048132,0.87389779,116850.0,116840.0,0.39911664]
[1758238048429,0.87389779,116850.0,116840.0,0.36918817]
[1758238049135,0.64993,116850.0,116840.0,0.06918817]
[1758238049330,1.13759779,116850.0,116830.0,0.23238186]
[1758238049542,1.39933779,116840.0,116830.0,0.40238186]
[1758238049737,1.17537,116840.0,116830.0,0.40228186]
[1758238050426,1.64933779,116840.0,116830.0,0.23797595]
[1758238050833,1.87330558,116840.0,116830.0,0.23797595]
[1758238051035,1.64933779,116840.0,116830.0,0.23797595]
[1758238051235,1.87330558,116840.0,116830.0,0.06797595]
[1758238051432,1.87330558,116840.0,116820.0,0.22406779]
[1758238051433,0.013,116830.0,116820.0,0.22406779]
[1758238051643,0.39689,116830.0,116820.0,0.79554779]
[1758238051838,0.62085779,116830.0,116820.0,0.79554779]
[1758238052040,0.39689,116830.0,116820.0,0.79554779]
[1758238052541,1.17537,116830.0,116820.0,0.79554779]
[1758238053041,1.17537,116830.0,116820.0,0.79754779]
[1758238053838,1.17637,116830.0,116820.0,0.79654779]
[1758238054140,1.17637,116830.0,116820.0,0.48654779]
[1758238054641,1.17637,116830.0,116820.0,0.49489585]
[1758238054938,1.17637,116830.0,116820.0,0.56374686]
[1758238055327,1.17637,116830.0,116820.0,0.56274686]
[1758238055530,1.17737,116830.0,116820.0,0.56274686]
[1758238057938,0.39889,116830.0,116820.0,0.78671465]
[1758238058142,0.38589,116830.0,116820.0,1.45012465]
[1758238058334,0.38589,116830.0,116820.0,1.42965224]
[1758238058535,0.38589,116830.0,116820.0,1.97965224]
[1758238058734,0.3628,116830.0,116820.0,1.97965224]
[1758238059038,0.002,116830.0,116820.0,1.97965224]
[1758238059334,0.002,116830.0,116820.0,1.72965224]
[1758238059544,0.002,116830.0,116820.0,1.50568445]
[1758238059843,0.002,116830.0,116820.0,1.72965224]
[1758238060238,0.002,116830.0,116820.0,1.42012465]
[1758238060541,0.015,116830.0,116820.0,1.11671465]
[1758238061443,0.3758,116830.0,116820.0,1.11671465]
[1758238061844,0.39889,116830.0,116820.0,1.34011775]
[1758238076262,0.39889,116830.0,116820.0,1.33011775]
[1758238077863,1.17717,116830.0,116820.0,1.33011775]
[1758238078260,1.76283934,116830.0,116820.0,0.29885101]
[1758238078658,1.76283934,116830.0,116820.0,0.32185101]
[1758238078854,1.76283934,116830.0,116820.0,0.23]
[1758238079063,2.09850868,116830.0,116820.0,0.23]
[1758238079360,0.03429,116820.0,116810.0,0.43723804]
[1758238079554,0.73075934,116820.0,116810.0,0.94713804]
[1758238081661,0.73075934,116820.0,116810.0,0.94913804]
[1758238085368,1.51099934,116820.0,116810.0,0.94813804]
[1758238085769,1.51099934,116820.0,116810.0,0.94713804]
[1758238085970,0.73375934,116820.0,116810.0,0.94713804]
[1758238086172,1.51099934,116820.0,116810.0,0.94713804]
[1758238088267,0.39709,116820.0,116810.0,0.94713804]
[1758238088471,1.17529,116820.0,116810.0,1.29616738]
[1758238088673,1.17529,116820.0,116810.0,0.96049804]
[1758238091766,0.39709,116820.0,116810.0,0.96049804]
[1758238091966,1.17529,116820.0,116810.0,0.96049804]
[1758238092173,1.51095934,116820.0,116810.0,0.6114687]
[1758238092469,1.51095934,116820.0,116810.0,0.94713804]
[1758238093374,1.17529,116820.0,116810.0,0.94713804]
[1758238094267,1.51095934,116820.0,116810.0,0.94713804]
[1758238096975,1.17529,116820.0,116810.0,0.94713804]
[1758238097176,1.51095934,116820.0,116810.0,0.94713804]
[1758238097376,1.51091934,116820.0,116810.0,0.94713804]
[1758238100973,1.51091934,116820.0,116810.0,0.6114687]
[1758238101279,1.51091934,116820.0,116810.0,0.94713804]
[1758238101971,0.73275934,116820.0,116810.0,0.94713804]
[1758238102172,1.51083934,116820.0,116810.0,0.94713804]
[1758238104080,1.51083934,116820.0,116810.0,0.95998804]
[1758238104282,1.17517,116820.0,116810.0,0.95998804]
[1758238105181,1.17517,116820.0,116810.0,1.11366905]
[1758238107583,0.39709,116820.0,116810.0,1.11366905]
[1758238107784,1.17513,116820.0,116810.0,1.11366905]
[1758238108082,0.39709,116820.0,116810.0,1.11366905]
[1758238108478,1.17513,116820.0,116810.0,1.11366905]
[1758238109686,1.16206,116820.0,116810.0,1.44933839]
[1758238111489,1.16202,116820.0,116810.0,1.44933839]
[1758238113081,0.38402,116820.0,116810.0,1.76933839]
[1758238113277,1.16198,116820.0,116810.0,1.73933839]
[1758238114485,0.38402,116820.0,116810.0,1.73933839]
[1758238114690,0.73367934,116820.0,116810.0,0.76514971]
[1758238114894,0.73367934,116820.0,116810.0,1.10081905]
[1758238115092,1.06934868,116820.0,116810.0,1.10081905]
[1758238115397,0.73367934,116820.0,116810.0,1.10081905]
[1758238115892,0.73367934,116820.0,116810.0,0.94713804]
[1758238116383,0.73367934,116820.0,116810.0,0.9386831]
[1758238123095,1.51151934,116820.0,116810.0,0.9386831]
[1758238123796,1.17585,116820.0,116810.0,0.82687064]
[1758238127398,1.17585,116820.0,116810.0,0.83972064]
[1758238127399,0.38402,116820.0,116810.0,0.83972064]
[1758238127598,1.16182,116820.0,116810.0,0.83972064]
[1758238128600,0.38402,116820.0,116810.0,1.59357752]
[1758238128795,0.3829,116840.0,116830.0,0.03578]
[1758238129000,1.17374,116850.0,116840.0,0.03578]
[1758238129303,1.17374,116850.0,116840.0,0.36578]
[1758238129501,1.17374,116850.0,116840.0,0.81349376]
[1758238129701,1.17374,116850.0,116840.0,0.25963688]
[1758238130103,0.81294,116850.0,116840.0,0.25963688]
[1758238131205,0.81294,116850.0,116840.0,0.03578]
[1758238131499,0.81694,116850.0,116840.0,0.25963688]
[1758238131905,0.81694,116850.0,116840.0,0.58963688]
[1758238132102,0.81694,116850.0,116840.0,0.25963688]
[1758238132598,0.81494,116850.0,116840.0,0.25963688]
[1758238132804,0.81594,116850.0,116840.0,0.25963688]
[1758238133004,0.81494,116850.0,116840.0,0.25963688]
[1758238138507,0.81474,116850.0,116840.0,0.48349376]
[1758238139507,0.81474,116850.0,116840.0,0.78349376]
[1758238142410,0.81474,116850.0,116840.0,0.48349376]
[1758238143513,0.81474,116850.0,116840.0,0.03578]
[1758238143713,0.00204,116850.0,116840.0,2.06369584]
[1758238144118,0.00204,116850.0,116840.0,1.83983896]
[1758238144816,0.00204,116850.0,116840.0,1.99351997]
[1758238145418,0.00204,116850.0,116840.0,2.00351997]
[1758238147116,0.00204,116850.0,116840.0,1.84983896]
[1758238149016,0.00204,116850.0,116840.0,1.51983896]
[1758238149218,0.26574,116850.0,116840.0,1.84983896]
[1758238153920,0.26574,116850.0,116840.0,1.51983896]
[1758238154114,0.26574,116850.0,116840.0,1.78983896]
[1758238160217,0.26574,116850.0,116840.0,1.79983896]
[1758238162025,0.26574,116850.0,116840.0,2.12275164]
[1758238162221,0.25574,116850.0,116840.0,2.12275164]
[1758238164431,0.25574,116850.0,116840.0,2.89987164]
[1758238164925,0.25574,116850.0,116840.0,2.12275164]
[1758238165124,0.25574,116850.0,116840.0,2.89987164]
[1758238166229,0.25574,116850.0,116840.0,2.67601476]
[1758238166929,0.25574,116850.0,116840.0,2.89987164]
[1758238168130,0.25574,116850.0,116840.0,2.12275164]
[1758238168332,0.25574,116850.0,116840.0,2.89983164]
[1758238168824,0.02298,116850.0,116840.0,1.1156358]
[1758238169029,0.02298,116850.0,116840.0,2.24137376]
[1758238169234,0.02298,116850.0,116840.0,1.46429376]
[1758238169419,0.02298,116850.0,116840.0,2.24137376]
[1758238169616,0.02298,116850.0,116840.0,2.32691896]
[1758238179431,0.02298,116850.0,116840.0,2.32679896]
[1758238180635,0.02298,116850.0,116840.0,2.24125376]
[1758238180836,0.02298,116850.0,116840.0,2.39493477]
[1758238181239,0.02298,116850.0,116840.0,2.48047997]
[1758238183237,0.02298,116850.0,116840.0,2.32679896]
[1758238183637,0.02298,116850.0,116840.0,2.24125376]
[1758238183837,0.02298,116850.0,116840.0,2.46460834]
[1758238184331,0.02298,116850.0,116840.0,1.68764834]
[1758238184533,0.03641,116850.0,116840.0,2.29452834]
[1758238184734,0.03641,116850.0,116840.0,2.32452834]
[1758238184935,0.29215,116850.0,116840.0,2.32452834]
[1758238185135,0.29215,116850.0,116840.0,2.18452834]
[1758238185436,0.29215,116850.0,116840.0,2.48452834]
[1758238186737,0.27872,116850.0,116840.0,2.48452834]
[1758238187139,0.27872,116850.0,116840.0,2.57007354]
[1758238194330,0.27872,116850.0,116840.0,2.90560771]
[1758238194832,0.27872,116850.0,116840.0,2.57007354]
[1758238196237,0.27872,116850.0,116840.0,2.90560771]
[1758238196940,0.27872,116850.0,116840.0,2.57007354]
[1758238197830,0.27872,116850.0,116840.0,2.90560771]
[1758238200538,0.25574,116850.0,116840.0,2.72387474]
[1758238201244,0.25574,116850.0,116840.0,2.0528064]
[1758238201445,0.25574,116850.0,116840.0,2.72387474]
[1758238201933,0.25574,116850.0,116840.0,1.86156954]
[1758238202138,0.25574,116850.0,116840.0,1.9672612]
[1758238202338,0.25574,116850.0,116840.0,2.48440834]
[1758238204949,0.25574,116850.0,116840.0,2.56995354]
[1758238205952,0.25574,116850.0,116840.0,1.03658]
[1758238206145,0.25574,116850.0,116840.0,2.48436834]
[1758238207553,0.25574,116850.0,116840.0,2.56991354]
[1758238209145,0.25574,116850.0,116840.0,2.93071354]
[1758238213352,0.25574,116850.0,116840.0,2.84516834]
[1758238215456,0.25574,116850.0,116840.0,2.93071354]
[1758238220353,0.25574,116850.0,116840.0,3.08470157]
[1758238220952,0.25574,116850.0,116840.0,2.99915637]
[1758238226668,0.25574,116850.0,116840.0,2.84516834]
[1758238228969,0.25574,116850.0,116840.0,3.04542294]
[1758238232473,0.25574,116850.0,116840.0,2.32382294]
[1758238232776,0.25574,116850.0,116840.0,3.04542294]
[1758238234875,0.25574,116850.0,116840.0,3.13096814]
[1758238236775,0.25574,116850.0,116840.0,3.46650231]
[1758238236975,0.25574,116850.0,116840.0,3.13096814]
[1758238239171,0.25574,116850.0,116840.0,3.46650231]
[1758238239366,0.25574,116850.0,116840.0,3.13096814]
[1758238239775,0.25574,116850.0,116840.0,3.46650231]
[1758238243883,0.25574,116850.0,116840.0,2.90725468]
[1758238245483,0.0218,116860.0,116850.0,0.03606]
[1758238245782,0.0218,116860.0,116850.0,1.36454564]
[1758238246884,0.0238,116860.0,116850.0,1.36454564]
[1758238247584,0.0258,116860.0,116850.0,1.36454564]
[1758238247881,0.0258,116860.0,116850.0,1.43399485]
[1758238260002,0.0258,116860.0,116850.0,1.65767229]
[1758238260793,0.0258,116860.0,116850.0,1.43399485]
[1758238262303,0.0258,116860.0,116850.0,1.65767229]
[1758238262505,0.004,116860.0,116850.0,1.74321009]
[1758238265109,0.004,116860.0,116850.0,1.51953265]
[1758238270212,0.004,116860.0,116850.0,1.74321009]
[1758238271106,0.004,116860.0,116850.0,2.51965009]
[1758238273313,0.004,116860.0,116850.0,2.80965009]
[1758238273807,0.004,116860.0,116850.0,2.51965009]
[1758238274004,0.004,116860.0,116850.0,1.29585521]
[1758238274205,0.004,116860.0,116850.0,2.51961009]
[1758238274405,0.004,116860.0,116850.0,2.36560189]
[1758238276515,0.004,116860.0,116850.0,1.58920189]
[1758238276707,0.004,116860.0,116850.0,2.36560189]
[1758238277006,0.004,116860.0,116850.0,2.51961009]
[1758238277206,0.004,116860.0,116850.0,2.84961009]
[1758238277615,0.004,116860.0,116850.0,2.69560189]
[1758238277914,0.004,116860.0,116850.0,2.36560189]
[1758238281120,0.004,116860.0,116850.0,2.68560189]
[1758238281619,0.28526,116880.0,116870.0,0.03523]
[1758238281818,0.2637,116880.0,116870.0,1.51970744]
[1758238282021,0.2637,116880.0,116870.0,1.51890808]
[1758238282214,0.2637,116880.0,116870.0,2.29526808]
[1758238282607,0.2637,116880.0,116870.0,2.20974488]
[1758238283011,0.02156,116880.0,116870.0,2.20974488]
[1758238283212,0.02556,116880.0,116870.0,2.21074488]
[1758238283512,0.02556,116880.0,116870.0,2.21932392]
[1758238283819,0.02856,116880.0,116870.0,2.21932392]
[1758238284221,0.02856,116880.0,116870.0,1.44296392]
[1758238287021,0.02856,116880.0,116870.0,1.52848712]
[1758238287412,0.007,116880.0,116870.0,1.52848712]
[1758238287814,0.007,116880.0,116870.0,1.80848712]
[1758238288819,0.007,116880.0,116870.0,2.51274229]
[1758238290220,0.79918,116900.0,116890.0,0.03558]
[1758238290421,0.79918,116900.0,116890.0,1.05005744]
[1758238290620,0.0229,116900.0,116890.0,1.39005744]
[1758238291428,0.0279,116900.0,116890.0,1.39005744]
[1758238292821,0.0279,116900.0,116890.0,1.61373488]
[1758238293019,0.005,116900.0,116890.0,1.69924328]
[1758238293826,0.005,116900.0,116890.0,2.06004328]
[1758238295927,0.005,116900.0,116890.0,2.12777908]
[1758238299020,0.005,116900.0,116890.0,3.15389908]
[1758238299524,0.005,116900.0,116890.0,2.90389908]
[1758238300918,0.005,116900.0,116890.0,2.81839068]
[1758238301929,0.005,116900.0,116890.0,2.90389908]
[1758238302331,0.005,116900.0,116890.0,2.12777908]
[1758238302526,0.005,116900.0,116890.0,1.5949158]
[1758238302829,0.01862,116900.0,116890.0,1.65859324]
[1758238303128,0.01862,116900.0,116890.0,1.12779324]
[1758238303324,0.005,116900.0,116890.0,1.12779324]
[1758238303723,0.005,116900.0,116890.0,1.23940828]
[1758238307229,0.005,116900.0,116890.0,1.57470076]
[1758238308932,0.005,116900.0,116890.0,1.66020916]
[1758238310337,0.005,116900.0,116890.0,2.02100916]
[1758238311431,0.005,116900.0,116890.0,2.35100916]
[1758238314230,0.005,116900.0,116890.0,2.26550076]
[1758238314436,0.005,116900.0,116890.0,3.04190076]
[1758238316240,0.005,116900.0,116890.0,3.12740916]
[1758238318836,0.005,116900.0,116890.0,3.46270164]
[1758238319040,0.005,116900.0,116890.0,3.55418781]
[1758238319234,0.005,116900.0,116890.0,3.21889533]
[1758238320440,0.005,116900.0,116890.0,3.80418781]
[1758238323040,0.005,116900.0,116890.0,2.69249533]
[1758238323236,0.005,116900.0,116890.0,2.26550076]
[1758238323430,0.005,116900.0,116890.0,3.04218076]
[1758238323630,0.003,116900.0,116890.0,2.26550076]
[1758238323841,0.004,116900.0,116890.0,3.04214076]
[1758238324039,0.002,116900.0,116890.0,3.04214076]
[1758238324942,0.002,116900.0,116890.0,3.12764916]
[1758238327743,0.002,116900.0,116890.0,2.35100916]
[1758238327943,0.002,116900.0,116890.0,3.04218076]
[1758238328934,0.002,116900.0,116890.0,3.28169736]
[1758238330942,0.002,116900.0,116890.0,2.6111124]
[1758238331150,0.002,116900.0,116890.0,2.6110724]
[1758238331449,0.002,116900.0,116890.0,3.28165736]
[1758238333751,0.002,116900.0,116890.0,2.6110724]
[1758238333954,0.002,116900.0,116890.0,3.28165736]
[1758238334648,0.002,116900.0,116890.0,1.8344324]
[1758238334855,0.002,116900.0,116890.0,2.6109924]
[1758238335153,0.002,116900.0,116890.0,3.28157736]
[1758238335453,0.002,116900.0,116890.0,2.6109924]
[1758238335656,0.002,116900.0,116890.0,3.28157736]
[1758238336256,0.002,116900.0,116890.0,3.12756916]
[1758238338461,0.002,116900.0,116890.0,2.26550076]
[1758238338656,0.002,116900.0,116890.0,3.19698896]
[1758238338857,0.002,116900.0,116890.0,1.014104]
[1758238338858,1.29687496,116900.0,116890.0,1.014104]
[1758238339054,1.31847496,116900.0,116890.0,0.1177358]
[1758238339257,1.31847496,116900.0,116890.0,0.0677358]
[1758238339562,0.03509,116890.0,116880.0,0.35800248]
[1758238339761,0.37038248,116890.0,116880.0,0.42790248]
[1758238345977,0.37038248,116890.0,116880.0,0.09261]
[1758238346178,0.37038248,116890.0,116880.0,0.42790248]
[1758238350482,0.37038248,116890.0,116880.0,0.09261]
[1758238350680,0.37038248,116890.0,116880.0,0.42790248]
[1758238351981,1.14822248,116890.0,116880.0,0.42790248]
[1758238354582,0.37038248,116890.0,116880.0,0.42790248]
[1758238354885,1.14814248,116890.0,116880.0,0.42790248]
[1758238356186,0.37038248,116890.0,116880.0,0.44050248]
[1758238356384,0.03509,116890.0,116880.0,0.44050248]
[1758238356584,0.37038248,116890.0,116880.0,0.77579496]
[1758238356785,1.11121248,116890.0,116880.0,1.47659496]
[1758238357088,0.35689248,116890.0,116880.0,1.47659496]
[1758238357386,0.79936,116890.0,116880.0,1.47659496]
[1758238358782,0.0216,116890.0,116880.0,1.47659496]
[1758238360585,0.37429,116910.0,116880.0,2.14740314]
[1758238360886,0.02179,116900.0,116890.0,0.39493]
[1758238361090,0.02179,116900.0,116890.0,0.68493]
[1758238361291,0.79967,116910.0,116900.0,0.03413]
[1758238361492,0.79967,116910.0,116900.0,0.39493]
[1758238361793,0.80367,116910.0,116900.0,1.06551496]
[1758238362988,0.80395,116910.0,116900.0,1.06551496]
[1758238363188,0.80195,116910.0,116900.0,1.06551496]
[1758238363489,0.80395,116910.0,116900.0,1.06551496]
[1758238363683,0.80195,116910.0,116900.0,1.06551496]
[1758238363887,0.80387,116910.0,116900.0,1.06551496]
[1758238364489,0.02579,116910.0,116900.0,1.06551496]
[1758238364689,0.80383,116910.0,116900.0,1.06551496]
[1758238365692,0.80383,116910.0,116900.0,1.1324585]
[1758238365882,0.80383,116910.0,116900.0,0.90888596]
[1758238366186,0.02579,116910.0,116900.0,0.90888596]
[1758238366490,0.80375,116910.0,116900.0,0.90888596]
[1758238370290,0.02579,116910.0,116900.0,0.90888596]
[1758238370492,0.80347,116910.0,116900.0,1.19888596]
[1758238370682,0.80347,116910.0,116900.0,0.90888596]
[1758238376295,0.80347,116910.0,116900.0,1.23888596]
[1758238376486,0.004,116910.0,116900.0,1.48888596]
[1758238376791,0.004,116910.0,116900.0,1.32438706]
[1758238378993,0.004,116910.0,116900.0,1.23888596]
[1758238379899,0.004,116910.0,116900.0,1.32438706]
[1758238380196,0.004,116910.0,116900.0,1.57438706]
[1758238381298,0.004,116910.0,116900.0,1.79789327]
[1758238381501,0.004,116910.0,116900.0,1.57438706]
[1758238382697,0.004,116910.0,116900.0,2.35174706]
[1758238382889,0.004,116910.0,116900.0,2.26616596]
[1758238383086,0.004,116910.0,116900.0,1.48888596]
[1758238383287,0.004,116910.0,116900.0,2.26616596]
[1758238383690,0.004,116910.0,116900.0,1.48888596]
[1758238385499,0.004,116910.0,116900.0,1.67315482]
[1758238385796,0.004,116910.0,116900.0,2.39178706]
[1758238385986,0.004,116910.0,116900.0,2.72579526]
[1758238390897,0.002,116910.0,116900.0,2.72579526]
[1758238391195,0.003,116910.0,116900.0,2.72579526]
[1758238391399,0.001,116910.0,116900.0,2.72579526]
[1758238391598,0.002,116910.0,116900.0,2.72579526]
[1758238393301,0.002,116910.0,116900.0,2.39017416]
[1758238393498,0.002,116910.0,116900.0,1.61289416]
[1758238393688,0.002,116910.0,116900.0,2.39013416]
[1758238394902,0.002,116910.0,116900.0,2.47563526]
[1758238396599,0.002,116910.0,116900.0,1.69839526]
[1758238397000,0.002,116910.0,116900.0,2.47543526]
[1758238401295,0.002,116910.0,116900.0,2.32142706]
[1758238403903,0.002,116910.0,116900.0,2.54493327]
[1758238404204,0.002,116910.0,116900.0,2.54457297]
[1758238404404,0.002,116910.0,116900.0,1.54438676]
[1758238404595,0.002,116910.0,116900.0,2.47507496]
[1758238404902,0.002,116910.0,116900.0,2.38953416]
[1758238405095,0.002,116910.0,116900.0,2.47503496]
[1758238411906,0.002,116910.0,116900.0,1.87401434]
[1758238412106,0.002,116910.0,116900.0,2.32102676]
[1758238415009,0.002,116910.0,116900.0,2.47503496]
[1758238416004,0.002,116910.0,116900.0,2.47535496]
[1758238416199,0.002,116910.0,116900.0,2.38973416]
[1758238416713,0.51085621,116910.0,116900.0,0.65107354]
[1758238416912,0.87165621,116910.0,116900.0,0.41847354]
[1758238417797,1.64857621,116910.0,116900.0,0.41847354]
[1758238418002,1.64857621,116910.0,116900.0,0.09847354]
[1758238419311,1.39857621,116910.0,116900.0,0.09847354]
[1758238420208,1.64857621,116910.0,116900.0,0.09847354]
[1758238421015,0.03535,116900.0,116890.0,0.02186]
[1758238421214,0.25885621,116900.0,116890.0,0.43526621]
[1758238421616,0.25885621,116900.0,116890.0,0.50502]
[1758238423216,0.81247,116900.0,116890.0,0.50502]
[1758238423417,0.81259,116900.0,116890.0,0.50502]
[1758238425025,1.07629,116900.0,116890.0,0.50502]
[1758238427221,0.29905,116900.0,116890.0,0.50502]
[1758238427419,1.07617,116900.0,116890.0,0.50502]
[1758238427726,1.41152014,116900.0,116890.0,0.61686393]
[1758238429726,0.29905,116900.0,116890.0,0.61686393]
[1758238429925,1.41148014,116900.0,116890.0,0.61686393]
[1758238431121,1.14778014,116900.0,116890.0,0.61686393]
[1758238432729,1.14762014,116900.0,116890.0,0.61686393]
[1758238433027,0.81227,116900.0,116890.0,0.61686393]
[1758238433223,1.14762014,116900.0,116890.0,0.61686393]
[1758238434222,0.02159,116900.0,116890.0,0.96528407]
[1758238434420,0.79859,116900.0,116890.0,0.96528407]
[1758238434621,0.02159,116900.0,116890.0,0.62993393]
[1758238434826,0.37456,116920.0,116900.0,0.01387]
[1758238435019,0.0221,116910.0,116900.0,1.07276014]
[1758238435225,0.7991,116910.0,116900.0,1.07266014]
[1758238435818,0.0221,116910.0,116900.0,1.07266014]
[1758238436022,0.7991,116910.0,116900.0,1.07266014]
[1758238436230,0.7991,116910.0,116900.0,1.40801028]
[1758238436424,1.42356,116920.0,116910.0,0.03651]
[1758238436626,1.42556,116920.0,116910.0,0.37186014]
[1758238436828,1.06476,116920.0,116910.0,0.37186014]
[1758238437835,1.06676,116920.0,116910.0,0.37186014]
[1758238439333,0.2898,116920.0,116910.0,0.37186014]
[1758238439534,1.0666,116920.0,116910.0,0.37186014]
[1758238440035,1.0666,116920.0,116910.0,0.70721028]
[1758238440528,1.0666,116920.0,116910.0,0.37186014]
[1758238441529,0.2898,116920.0,116910.0,0.37186014]
[1758238441833,1.06664,116920.0,116910.0,0.37186014]
[1758238447035,1.06664,116920.0,116910.0,0.03651]
[1758238447335,1.06664,116920.0,116910.0,0.37186014]
[1758238448937,0.80294,116920.0,116910.0,0.37186014]